Workbook

Sheet Приџ,прим vs Расх,изд (hidden)
A1: Р.бр. | B1: ОПИС | C1: Шифра економске класификације | D1: Средства из буџета | E1: Средства из осталих извора | F1: Укупно
A2: 1 | B2: 2 | C2: 3 | D2: 4 | E2: 5 | F2: 6
A3: I | B3: УКУПНИ ПРИХОДИ И ПРИМАЊА ОД ПРОДАЈЕ НЕФИНАНСИЈСКЕ ИМОВИНЕ | C3: 7+8
A4: 1. | B4: Порески приходи | C4: 71
A5: 1.1. | B5: Порез на доходак, добит и капиталне добитке (осим самодоприноса) | C5: 711
A6: 1.2. | B6: Самодопринос | C6: 711180
A7: 1.3. | B7: Порез на имовину | C7: 713
A8: 1.6. | B8: Остали порески приходи
A9: 2. | B9: Непорески приходи | C9: 74
A10: 2.1 | B10: Накнада за коришћење природних добара | C10: 741510
A11: 2.2 | B11: Накнада за коришћење шумског и пољопривредног земљишта | C11: 741520
A12: 2.2 | B12: Накнада за коришћење грађевинског земљишта | C12: 741534
A13: 2.3 | B13: Накнада за коришћење природног лековитог фактора | C13: 741542
A14: 2.4 | B14: Приход од имовине који припада имаоцима полисе осигурања | C14: 741411
A15: 2.5 | B15: Накнада за обавезни здравствени преглед биља | C15: 742252
A16: 2.6 | B16: Накнада за уређивање грађевинског земљишта | C16: 742253
A17: 2.7 | B17: Приходи настали продајом услуга корисника средстава буџета јединице локлане самоуправе чије је пружање уговорено са физичким и правним лицима | C17: 742340
A18: 2.8 | B18: Остали непорески приходи
A19: 3. | B19: Донације | C19: 731+732
A20: 4. | B20: Трансфери | C20: 733
A21: 5. | B21: Меморандумске ставке за рефундацију расхода | C21: 771
A22: 6. | B22: Примања од продаје нефинансијске имовине | C22: 8
A23: II | B23: УКУПНИ РАСХОДИ И ИЗДАЦИ ЗА НАБАВКУ НЕФИНАНСИЈСКЕ ИМОВИНЕ | C23: 4+5
A24: 1. | B24: Текући расходи | C24: 4 - 463
A25: 1.1. | B25: Расходи за запослене | C25: 41
A26: 1.2. | B26: Коришћење роба и услуга | C26: 42
A27: 1.3. | B27: Употреба основних средстава | C27: 43
A28: 1.4. | B28: Отплата камата | C28: 44
A29: 1.5. | B29: Субвенције | C29: 45
A30: 1.6. | B30: Социјална заштита из буџета | C30: 47
A31: 1.7. | B31: Остали расходи | C31: 48+49
A32: 2. | B32: Трансфери | C32: 463
A33: 3. | B33: Издаци за набавку нефинансијске имовине | C33: 5
A34: 4. | B34: Издаци за набавку финансијске имовине (осим 6211) | C34: 62
A35: III | B35: ПРИМАЊА ОД ПРОДАЈЕ ФИНАНСИЈСКЕ ИМОВИНЕ И ЗАДУЖИВАЊА | C35: 9
A36: 1. | B36: Задуживање | C36: 91
A37: 1.1. | B37: Задуживање код домаћих кредитора | C37: 911
A38: 1.2. | B38: Задуживање код страних кредитора | C38: 912
A39: 2. | B39: Примања по основу отплате кредита и продаје финансијске имовине | C39: 92
A40: IV | B40: ОТПЛАТА ДУГА И НАБАВКА ФИНАНСИЈСКЕ ИМОВИНЕ | C40: 6
A41: 1. | B41: Отплата дуга | C41: 61
A42: 1.1. | B42: Отплата дуга домаћим кредиторима | C42: 611
A43: 1.2. | B43: Отплата дуга страним кредиторима | C43: 612
A44: 1.3. | B44: Отплата дуга по гаранцијама | C44: 613
A45: 2. | B45: Набавка финансијске имовине | C45: 6211
A47: V | B47: НЕРАСПОРЕЂЕНИ ВИШАК ПРИХОДА ИЗ РАНИЈИХ ГОДИНА | C47: 3

Sheet Оптшти део - (6)
A1: Класа/Категорија/Група | B1: Конто | C1: ВРСТЕ ПРИХОДА И ПРИМАЊА | D1: План за 2022. | G1: УКУПНА ЈАВНА СРЕДСТВА
D2: Средства из буџета | E2: Структ-ура % | F2: Средства из осталих извора финан. буџ. корисника | H2: %
B3: 321121 | C3: Вишак прихода и примања - суфицит | E3: =IFERROR(D3/$D$95,"-") -> 0 | F3: 650000000 | G3: 650000000 | H3: =G3/G95*100 -> 19.49025487
A4: 700000 | C4: ТЕКУЋИ ПРИХОДИ | D4: =SUM(D5,D41,D50,D81,D84) -> 2665093000 | E4: 0.9994374845 | F4: =F41+F74+F81 -> 18407000 | G4: =G5+G41+G50+G81 -> 2683500000 | H4: =G4/G95*100 -> 80.46476762
A5: 710000 | C5: ПОРЕЗИ | D5: =D6+D18+D20+D26+D37+D39 -> 909142500 | E5: 0.3409378559 | F5: =SUM(F6,F20,F26,F39) -> 0 | G5: =G6+G18+G20+G26+G37+G39 -> 909142500 | H5: =G5/G95*100 -> 27.26064468
A6: 711000 | C6: ПОРЕЗ НА ДОХОДАК, ДОБИТ И КАПИТАЛНЕ ДОБИТКЕ | D6: =D7+D8+D9+D10+D11+D12+D13+D14+D15+D16+D17 -> 302282000 | E6: 0.1133588815 | F6: =SUM(F7:F16) -> 0 | G6: =G7+G8+G9+G10+G11+G12+G13+G14+G15+G16+G17 -> 302282000 | H6: =G6/G95*100 -> 9.063928036
B7: 711111 | C7: Порез на зараде | D7: 205000000 | E7: 0.07687712373 | G7: =D7+F7 -> 205000000 | H7: =G7/G95*100 -> 6.146926537
B8: 711121 | C8: Порез на приходе од самосталних делатности који се плаћа према стварно оствареном приходу, по решењу Пореске управе | D8: 150000 | E8: 5.625155395e-05 | G8: =D8+F8 -> 150000 | H8: =G8/G95*100 -> 0.004497751124
B9: 711122 | C9: Порез на приходе од самосталних делатности који се плаћа према паушално утврђеном приходу, по решењу Пореске управе | D9: 17000000 | E9: 0.006375176114 | G9: =D9+F9 -> 17000000 | H9: =G9/G95*100 -> 0.5097451274
B10: 711123 | C10: Порез на приходе од самосталних делатности који се плаћа према стварно оствареном приходу самоопорезивањем | D10: 44000000 | E10: 0.01650045583 | G10: 44000000 | H10: =G10/G95*100 -> 1.31934033
B11: 711143 | C11: Порез на приходе од непокретности | D11: 1000 | E11: 3.750103597e-07 | G11: 1000 | H11: =G11/G95*100 -> 2.99850075e-05
B12: 711145 | C12: Порез на приходе од давања у закуп покретних ствари - по основу самоопорезивања и по решењу Пореске управе | D12: 400000 | E12: 0.0001500041439 | G12: 400000 | H12: =G12/G95*100 -> 0.011994003
B13: 711147 | C13: Порез на земљиште | D13: 200000 | E13: 7.500207193e-05 | G13: 200000 | H13: =G13/G95*100 -> 0.005997001499
B14: 711181 | C14: Самодопринос према зарадама запослених | D14: 1000 | E14: 3.750103597e-07 | G14: 1000 | H14: 0
B15: 711184 | C15: Самодопринос из прихода од самосталне делатности | D15: 30000 | E15: 1.125031079e-05 | G15: 30000 | H15: =G15/G95*100 -> 0.0008995502249
B16: 711191 | C16: Порез на друге приходе | D16: 33000000 | E16: 0.01237534187 | G16: 33000000 | H16: =G16/G95*100 -> 0.9895052474
B17: 711193 | C17: Порез на приходе спортиста и спортских стручнјака | D17: 2500000 | E17: 0.0009375258992 | G17: 2500000 | H17: =G17/G95*100 -> 0.07496251874
A18: 712000 | C18: ПОРЕЗ НА ФОНД ЗАРАДА | D18: =D19 -> 500 | E18: 1.875051798e-07 | G18: 500 | H18: 0
B19: 712112 | C19: Порез на фонд зарада | D19: 500 | E19: 1.875051798e-07 | G19: 500 | H19: 0
A20: 713000 | C20: ПОРЕЗ НА ИМОВИНУ | D20: =D21+D22+D23+D24+D25 -> 457500000 | E20: 0.1715672395 | F20: =SUM(F21:F25) -> 0 | G20: =G21+G22+G23+G24+G25 -> 457500000 | H20: =G20/G95*100 -> 13.71814093
B21: 713121 | C21: Порез на имовину (осим на земљиште, акције и уделе) од физичких лица | D21: 140000000 | E21: 0.05250145035 | G21: =D21+F21 -> 140000000 | H21: =G21/G95*100 -> 4.197901049
B22: 713122 | C22: Порез на имовину (осим на земљиште, акције и уделе) од правних лица | D22: 150000000 | E22: 0.05625155395 | G22: 150000000 | H22: =G22/G95*100 -> 4.497751124
B23: 713311 | C23: Порез на наслеђе и поклон по решењу Пореске управе | D23: 14000000 | E23: 0.005250145035 | G23: 14000000 | H23: =G23/G95*100 -> 0.4197901049
B24: 713421 | C24: Порез на пренос апсолутних права на непокретности, по решењу Пореске управе | D24: 150000000 | E24: 0.83 | G24: 150000000 | H24: =G24/G95*100 -> 4.497751124
B25: 713423 | C25: Порез на пренос апсолутних права на моторним возилима, пловилима и ваздухопловима, по решењу Пореске управе | D25: 3500000 | E25: =IFERROR(D25/$D$95,"-") -> 0.001312536259 | G25: 3500000 | H25: =G25/G95*100 -> 0.1049475262
A26: 714000 | C26: ПОРЕЗ НА ДОБРА И УСЛУГЕ | D26: =D27+D28+D29+D30+D31+D32+D33+D34+D35+D36 -> 129860000 | E26: 0.04869884531 | F26: =SUM(F27:F34) -> 0 | G26: =G27+G28+G29+G30+G31+G32+G33+G34+G35+G36 -> 129860000 | H26: =G26/G95*100 -> 3.893853073
B27: 714431 | C27: Комунална такса за коришћење рекламних паноа, укључујући и истицање и исписивање фирме ван пословног простора на објектима и просторима који припадају јединици локалне самоуправе(коловози, тротоари, зелене површине, бандере и сл.) | D27: 300000 | E27: 0.0001125031079 | G27: =D27+F27 -> 300000 | H27: =G27/G95*100 -> 0.008995502249
B28: 714513 | C28: Комунална такса за држање моторних друмских и прикључних возила, осим пољопривредних возила и машина | D28: 13000000 | E28: 0.004875134676 | G28: 13000000 | H28: =G28/G95*100 -> 0.3898050975
B29: 714543 | C29: Накнада за промену намене обрадивог пољопривредног земљишта | D29: 6000000 | E29: 0.002250062158 | G29: 6000000 | H29: =G29/G95*100 -> 0.179910045
B30: 714548 | C30: Накнада за супстанце које оштећују озонски омотач | D30: 1500000 | E30: 0.0005625155395 | G30: 1500000 | H30: =G30/G95*100 -> 0.04497751124
B31: 714549 | C31: Накнада од емисије СО2, НО2, прашкастих материја | D31: 60000 | E31: 2.250062158e-05 | G31: 60000 | H31: 0
B32: 714552 | C32: Боравишна такса - правна лица | D32: 60000000 | E32: 0.02250062158 | G32: 60000000 | H32: =G32/G95*100 -> 1.79910045
B33: 714553 | C33: Боравишна такса - физичка лица у пазшалном износу по лежају | D33: 10000000 | E33: 0.003750103597 | G33: 10000000 | H33: 0.39
B34: 714562 | C34: Посебна накнада за заштиту и унапређење животне средине | D34: 7500000 | E34: 0.002812577697 | G34: 7500000 | H34: =G34/G95*100 -> 0.2248875562
B35: 714565 | C35: Накнада за коришћење простора на јавној површини | D35: 30000000 | E35: 0.01125031079 | G35: 30000000 | H35: 0.16
B36: 714566 | C36: Накнада за коришћење јавне површине за оглашавање | D36: 1500000 | E36: 0.0005625155395 | G36: 1500000 | H36: 0.04
A37: 715000 | C37: ПОРЕЗ НА МЕЂУНАРОДНУ ТРГОВИНУ И ТРАНСАКЦИЈЕ | D37: =D38 -> 500000 | G37: 500000 | H37: 0.03
B38: 715411 | C38: Добит по основу разлике између куповног и продајног девизног курса | D38: 500000 | G38: 500000 | H38: 0.03
A39: 716000 | C39: ДРУГИ ПОРЕЗИ | D39: =SUM(D40:D40) -> 19000000 | E39: =IFERROR(D39/$D$95,"-") -> 0.007125196834 | F39: =SUM(F40:F40) -> 0 | G39: =D39+F39 -> 19000000 | H39: =G39/G95*100 -> 0.5697151424
B40: 716111 | C40: Комунална такса за истицање фирме на пословном простору | D40: 19000000 | E40: =IFERROR(D40/$D$95,"-") -> 0.007125196834 | G40: 19000000 | H40: 0.64
A41: 730000 | C41: ДОНАЦИЈЕ И ТРАНСФЕРИ | D41: =SUM(D42,D45) -> 75432192 | E41: =IFERROR(D41/$D$95,"-") -> 0.02828785345 | F41: =F42+F45 -> 18107000 | G41: =G42+G45 -> 93539192 | H41: =G41/G95*100 -> 2.804773373
A42: 732000 | C42: ДОНАЦИЈЕ И ПОМОЋИ ОД МЕЂ. ОРГАНИЗАЦИЈА | D42: =D43+D44 -> 0 | E42: =IFERROR(D42/$D$95,"-") -> 0 | F42: =F43+F44 -> 0 | G42: =G43+G44 -> 0 | H42: 0
B43: 732341 | C43: Текуће помоћи ЕУ у корист нивоа општине | E43: =IFERROR(D43/$D$95,"-") -> 0 | G43: =F43 -> 0 | H43: 0
B44: 732441 | C44: Капиталне помоћи ЕУ у корист нивоа општине | D44: 0 | G44: =D44+F44 -> 0 | H44: 0
A45: 733000 | C45: ТРАНСФЕРИ ОД ДРУГИХ НИВОА ВЛАСТИ | D45: =SUM(D46:D49) -> 75432192 | E45: =IFERROR(D45/$D$95,"-") -> 0.02828785345 | F45: =F46+F47+F48+F49 -> 18107000 | G45: =G46+G47+G48+G49 -> 93539192 | H45: =G45/G95*100 -> 2.804773373
B46: 733151 | C46: Ненаменски трансфери од Републике у корист нивоа општина | D46: 75432192 | E46: 0.02828785345 | G46: 75432192 | H46: =G46/G95*100 -> 2.261834843
B47: 733152 | C47: Други текући трансфери од Републике у корист нивоа општина | D47: 0 | E47: 0 | G47: =F47 -> 0 | H47: 0
B48: 733154 | C48: Текући наменски трансфери, у ужем смислу, од Републике у корист нивоа општина | D48: 0 | E48: 0 | F48: 7700000 | G48: =F48 -> 7700000 | H48: =G48/G95*100 -> 0.2308845577
B49: 733251 | C49: Капитални наменски трансфери, у ужем смислу, од Републике у корист нивоа општине | D49: 0 | E49: 0 | F49: 10407000 | G49: =F49 -> 10407000 | H49: 0.67
A50: 740000 | C50: ДРУГИ ПРИХОДИ | D50: =SUM(D51,D61,D70,D74,D77) -> 1678468308 | E50: 0.6294430039 | F50: =F61+F77 -> 0 | G50: =G51+G61+G70+G74+G77 -> 1678618308 | H50: =G50/G95*100 -> 50.33338255
A51: 741000 | C51: ПРИХОДИ ОД ИМОВИНЕ | D51: =D52+D53+D54+D55+D56+D57+D58+D59+D60 -> 1550361000 | E51: 0.5814014362 | F51: =SUM(F52:F59) -> 0 | G51: =G52+G53+G54+G55+G56+G57+G58+G59+G60 -> 1550361000 | H51: =G51/G95*100 -> 46.48758621
B52: 741151 | C52: Приходи буџета општине од камата на средства консолидованог рачуна трезора укључена у депозит банака | D52: 1000 | E52: 3.750103597e-07 | G52: =D52+F52 -> 1000 | H52: 0
B53: 741511 | C53: Накнада за коришћење минералних сировина | D53: 3500000 | E53: 0.001312536259 | G53: =D53+F53 -> 3500000 | H53: =G53/G95*100 -> 0.1049475262
B54: 741522 | C54: Средства остварена од давања у закуп пољопривредног земљишта | D54: 1500000 | E54: 0.0005625155395 | G54: 1500000 | H54: 0.04
B55: 741526 | C55: Накнада за коришћење шумског и пољопривредног земљишта | D55: 50000 | E55: 1.875051798e-05 | G55: 50000 | H55: =G55/G95*100 -> 0.001499250375
B56: 741531 | C56: Комунална такса за коришћење простора на јавним површинама или испред пословног простора у пословне сврхе, осим ради продаје штампе, књига и других публикација, производа старих и уметничких заната и домаће радиности | D56: 1500000 | E56: 0.0005625155395 | G56: 1500000 | H56: =G56/G95*100 -> 0.04497751124
B57: 741532 | C57: Комунална такса за коришћење простора за паркирање друмских моторних и прикључних возила на уређеним и обележеним местима | D57: 2500000 | E57: 0.0009375258992 | G57: 2500000 | H57: =G57/G95*100 -> 0.07496251874
B58: 741534 | C58: Накнада за коришћење грађевинског земљишта | D58: 10000 | E58: 3.750103597e-06 | G58: 10000 | H58: 0
B59: 741538 | C59: Допринос за уређивање грађевинског земљишта | D59: 1540000000 | E59: 0.5775159539 | G59: 1540000000 | H59: 43.87
B60: 741596 | C60: Накнада за коришћење дрвета | D60: 1300000 | E60: 0.0004875134676 | G60: 1300000 | H60: 0.03
A61: 742000 | C61: ПРИХОДИ ОД ПРОДАЈЕ ДОБАРА И УСЛУГА | D61: =D62+D63+D64+D65+D66+D67+D68+D69 -> 107701000 | E61: 0.04038899075 | F61: =F62+F63+F69 -> 0 | G61: =G62+G63+G64+G65+G66+G67+G68+G69 -> 107701000 | H61: =G61/G95*100 -> 3.229415292
B62: 742151 | C62: Приходи од продаје добара и услуга од стране тржишних организација у корист нивоа општине | D62: 39000000 | F62: 0 | G62: =D62+F62 -> 39000000 | H62: =G62/G95*100 -> 1.169415292
B63: 742152 | C63: Приходи од давања у закуп, односно на коришћење непокретности у државној својини које користе општине и индиректни корисници њиховог буџета | D63: 6000000 | E63: =IFERROR(D63/$D$95,"-") -> 0.002250062158 | F63: 0 | G63: =D63+F63 -> 6000000 | H63: =G63/G95*100 -> 0.179910045
B64: 742154 | C64: Накнада по основу конверзије права коришћења у право својине у корист нивоа општине | D64: 1000 | E64: 3.750103597e-07 | G64: =D64+F64 -> 1000 | H64: 0
B65: 742156 | C65: Приходи остварени по основу пружања услуга боравка деце у предшколским установама у корист нивоа општине | D65: 17000000 | E65: 0.006375176114 | G65: 17000000 | H65: =G65/G95*100 -> 0.5097451274
B66: 742251 | C66: Општинске административне таксе | D66: 30000000 | E66: 0.01125031079 | G66: 30000000 | H66: =G66/G95*100 -> 0.8995502249
B67: 742253 | C67: Накнада за уређивање грађевинског земљишта | D67: 11500000 | E67: 0.004312619136 | G67: 11500000 | H67: =G67/G95*100 -> 0.3448275862
B68: 742255 | C68: Такса за озакоњење објеката у корист нивоа општине | D68: 3500000 | E68: 0.001312536259 | G68: 3500000 | H68: =G68/G95*100 -> 0.1049475262
B69: 742351 | C69: Приходи које својом делатношћу остваре органи и организације општине | D69: 700000 | F69: 0 | G69: 700000 | H69: =G69/G95*100 -> 0.02098950525
A70: 743000 | C70: НОВЧАНЕ КАЗНЕ И ОДУЗЕТА ИМОВИНСКА КОРИСТ | D70: =D71+D72+D73 -> 11300000 | E70: =IFERROR(D70/$D$95,"-") -> 0.004237617064 | F70: =SUM(F71:F72) -> 0 | G70: 11300000 | H70: =G70/G95*100 -> 0.3388305847
B71: 743324 | C71: Приходи од новчаних казни за прекршаје, предвиђене прописима о безбедности саобраћаја на путевима | D71: 8500000 | E71: 0.003187588057 | G71: 8500000 | H71: =G71/G95*100 -> 0.2548725637
B72: 743351 | C72: Приходи од новчаних казни изречених у прекршајном поступку за прекршаје прописане актом скупштине општине | D72: 2500000 | E72: 0.0009375258992 | G72: 2500000 | H72: 0
B73: 743353 | C73: Приходи од новчаних казни за прекршаје, предвиђене прописима о безбедности саобраћаја на путевима | D73: 300000 | E73: 0.0001125031079 | G73: 300000 | H73: 0
A74: 744000 | C74: ДОБРОВОЉНИ ТРАНСФЕРИ ОД ФИЗИЧКИХ И ПРАВНИХ ЛИЦА | D74: =SUM(D75:D76) -> 0 | E74: 0 | F74: =SUM(F75:F76) -> 150000 | G74: 150000 | H74: 0
B75: 744151 | C75: Текући добровољни трансфери од физичких и правних лица у корист нивоа општина | D75: 0 | E75: 0 | G75: 0 | H75: 0
B76: 744251 | C76: Капитални добровољни трансфери од физичких и правних лица у корист нивоа општина | E76: 0 | F76: 150000 | G76: 150000 | H76: 0
A77: 745000 | C77: МЕШОВИТИ И НЕОДРЕЂЕНИ ПРИХОДИ | D77: =D78+D79+D80 -> 9106308 | E77: 0.003414959838 | F77: =SUM(F78:F80) -> 0 | G77: 9106308 | H77: =G77/G95*100 -> 0.2730527136
B78: 745151 | C78: Остали приходи у корист нивоа општина | D78: 9106308 | E78: 0.003414959838 | F78: 0 | G78: 9106308 | H78: 0.24
B79: 745152 | C79: Закупнина за стан у државној својини у корист нивоа општина | D79: 0 | E79: 0 | G79: 0 | H79: 0
B80: 745153 | C80: Део добити јавног предузећа према одлуци управног одбора јавног предузећа у корист нивоа општина | D80: 0 | E80: 0 | G80: 0 | H80: 0
A81: 772000 | C81: МЕМОРАНДУМСКЕ СТАВКЕ ЗА РЕФУНДАЦИЈУ РАСХОДА | D81: =D82+D83 -> 2050000 | E81: 0.0007687712373 | F81: =SUM(F82) -> 150000 | G81: =G82+G83 -> 2200000 | H81: =G81/G95*100 -> 0.06596701649
B82: 772111 | C82: Меморандумске ставке за рефундацију расхода буџета Републике из претходне године | D82: 50000 | E82: 1.875051798e-05 | F82: 150000 | G82: 200000 | H82: 0.04
B83: 772114 | C83: Mеморандумске ставке за рефундацију расхода буџета општине из претходне године | D83: 2000000 | E83: =D83/D94*100 -> 0.07500207193 | G83: =D83 -> 2000000 | H83: 0.04
A84: 790000 | C84: ПРИХОДИ ИЗ БУЏЕТА | D84: =SUM(D85) -> 0 | E84: =IFERROR(D84/$D$95,"-") -> 0 | F84: =SUM(F85) -> 0 | G84: 0 | H84: 0
B85: 791110 | C85: Приходи из буџета | E85: 0 | G85: 0 | H85: 0
A86: 800000 | C86: ПРИМАЊА ОД ПРОДАЈЕ НЕФИНАНСИЈСКЕ ИМОВИНЕ | D86: =D87+D91 -> 1500000 | E86: 0.0005625155395 | F86: =F87+F92 -> 0 | G86: 1500000 | H86: =G86/G95*100 -> 0.04497751124
A87: 810000 | C87: ПРИМАЊА ОД ПРОДАЈЕ ОСНОВНИХ СРЕДСТАВА | D87: =D88+D89+D90 -> 900000 | E87: 0.0003375093237 | F87: =SUM(F88:F89) -> 0 | G87: 900000 | H87: 0
B88: 811151 | C88: Примања од продаје непокретности у корист нивоа општине | E88: 0 | G88: 0 | H88: 0
B89: 812151 | C89: Примања од продаје покретних ствари у корист нивоа општине | D89: 900000 | E89: 0.0003375093237 | G89: 900000 | H89: 0
B90: 813151 | C90: Примања од продаје осталих основних средстава у корист нивоа општине | D90: 0 | G90: 0 | H90: 0
A91: 820000 | C91: ПРИМАЊА ОД ПРОДАЈЕ ЗАЛИХА | D91: 600000 | G91: 600000 | H91: 0.02
A92: 823000 | C92: ПРИМАЊА ОД ПРОДАЈЕ РОБЕ ЗА ДАЉУ ПРОДАЈУ | D92: =SUM(D93) -> 600000 | E92: =IFERROR(D92/$D$95,"-") -> 0.0002250062158 | F92: =SUM(F93) -> 0 | G92: 600000 | H92: =G92/G95*100 -> 0.0179910045
B93: 823151 | C93: Примања од продаје робе за даљу продају у корист нивоа општине | D93: 600000 | E93: =IFERROR(D93/$D$95,"-") -> 0.0002250062158 | F93: 0 | G93: 600000 | H93: 0.05
B94: 7+8+9 | C94: ТЕКУЋИ ПРИХОДИ И ПРИМАЊА ОД ЗАДУЖИВАЊА И ПРОДАЈЕ ФИН. ИМОВИНЕ | D94: =D4+D86 -> 2666593000 | E94: =IFERROR(D94/$D$95,"-") -> 1 | F94: =F42+F45+F74+F81 -> 18407000 | G94: =G4+G86 -> 2685000000 | H94: =G94/G95*100 -> 80.50974513
B95: 3+7+8+9 | C95: УКУПНО ПРЕНЕТА СРЕДСТВА, ТЕКУЋИ ПРИХОДИ И ПРИМАЊА | D95: =D94 -> 2666593000 | E95: =IFERROR(D95/$D$95,"-") -> 1 | F95: =F3+F94 -> 668407000 | G95: =G3+G4+G86 -> 3335000000 | H95: 100

Sheet По основ. нам.
A1: ОПШТИ ДЕО - ИЗДАЦИ ПО ОСНОВНИМ НАМЕНАМА
A3: Екон. клас. | B3: ВРСТЕ РАСХОДА И ИЗДАТАКА | C3: Средства из буџета | D3: Структура % | E3: Средства из осталих извора | F3: Укупна јавна средства | G3: %
A4: 1 | B4: 2 | C4: 3 | D4: 4 | E4: 5 | F4: 6 | G4: 7
A5: 400 | B5: ТЕКУЋИ РАСХОДИ | C5: =C6+C13+C26+C31+C37+C44+C46+C53 -> 1718463000 | D5: =IFERROR(C5/$C$84,"-") -> 0.6444414277 | E5: =SUM(E6,E13,E20,E26,E31,E37,E44,E46,E53) -> 282850000 | F5: =F6+F13+F26+F31+F37+F44+F46+F53 -> 2001313000 | G5: =F5/Ukupno_izdaci*100 -> 60.00938531
A6: 410 | B6: РАСХОДИ ЗА ЗАПОСЛЕНЕ | C6: =C7+C8+C9+C10+C11+C12 -> 303687000 | D6: 0.1138857711 | E6: =SUM(E7:E12) -> 150000 | F6: =C6+E6 -> 303837000 | G6: 9.110554723
A7: 411 | B7: Плате и додаци запослених | C7: 223365000 | F7: =C7 -> 223365000 | G7: =F7/Ukupno_izdaci*100 -> 6.697601199
A8: 412 | B8: Социјални доприноси на терет послодавца | C8: 36081000 | F8: =C8 -> 36081000 | G8: 1.081889055
A9: 413 | B9: Накнаде у натури (превоз) | C9: 2760000 | F9: =C9 -> 2760000 | G9: 0.08275862069
A10: 414 | B10: Социјална давања запосленима | C10: 27370000 | E10: 150000 | F10: =C10+E10 -> 27520000 | G10: 0.8251874063
A11: 415 | B11: Накнаде за запослене | C11: 10961000 | F11: =C11 -> 10961000 | G11: 0.3286656672
A12: 416 | B12: Награде,бонуси и остали посебни расходи | C12: 3150000 | F12: =C12 -> 3150000 | G12: 0.09445277361
A13: 420 | B13: КОРИШЋЕЊЕ УСЛУГА И РОБА | C13: =C14+C15+C16+C17+C18+C19 -> 658709000 | E13: =E14+E16+E17+E18+E19 -> 281200000 | F13: =F14+F15+F16+F17+F18+F19 -> 939909000 | G13: 28.18317841
A14: 421 | B14: Стални трошкови | C14: 95466000 | E14: 40000000 | F14: =C14+E14 -> 135466000 | G14: 4.061949025
A15: 422 | B15: Трошкови путовања | C15: 3750000 | F15: =C15 -> 3750000 | G15: 0.1124437781
A16: 423 | B16: Услуге по уговору | C16: 345566000 | E16: 95000000 | F16: =C16+E16 -> 440566000 | G16: 13.21037481
A17: 424 | B17: Специјализоване услуге | C17: 64040000 | E17: 30000000 | F17: =C17+E17 -> 94040000 | G17: 2.819790105
A18: 425 | B18: Текуће поправке и одржавање (услуге и мат) | C18: 112162000 | E18: 110000000 | F18: =C18+E18 -> 222162000 | G18: 6.661529235
A19: 426 | B19: Материјал | C19: 37725000 | E19: 6200000 | F19: =C19+E19 -> 43925000 | G19: 1.317091454
A20: 430 | B20: УПОТРЕБА ОСНОВНИХ СРЕДСТАВА | C20: =SUM(C21:C25) -> 0 | D20: 0 | E20: =SUM(E21:E25) -> 0 | F20: =C20+E20 -> 0 | G20: 0
A21: 431 | B21: Амортизација некретнина и опреме; | C21: =SUMIF('ПО КОРИСНИЦИМА'!$F$4:$F$2858,'По основ. нам.'!A21,'ПО КОРИСНИЦИМА'!$H$4:$H$2858) -> 0 | D21: 0 | E21: =SUMIF('ПО КОРИСНИЦИМА'!$F$4:$F$2858,'По основ. нам.'!A21,'ПО КОРИСНИЦИМА'!$I$4:$I$2858) -> 0 | F21: 0 | G21: 0
A22: 432 | B22: Амортизација култивисане имовине; | C22: =SUMIF('ПО КОРИСНИЦИМА'!$F$4:$F$2858,'По основ. нам.'!A22,'ПО КОРИСНИЦИМА'!$H$4:$H$2858) -> 0 | D22: 0 | E22: =SUMIF('ПО КОРИСНИЦИМА'!$F$4:$F$2858,'По основ. нам.'!A22,'ПО КОРИСНИЦИМА'!$I$4:$I$2858) -> 0 | F22: 0 | G22: 0
A23: 433 | B23: Употреба драгоцености; | C23: =SUMIF('ПО КОРИСНИЦИМА'!$F$4:$F$2858,'По основ. нам.'!A23,'ПО КОРИСНИЦИМА'!$H$4:$H$2858) -> 0 | D23: 0 | E23: =SUMIF('ПО КОРИСНИЦИМА'!$F$4:$F$2858,'По основ. нам.'!A23,'ПО КОРИСНИЦИМА'!$I$4:$I$2858) -> 0 | F23: 0 | G23: 0
A24: 434 | B24: Употреба природне имовине; | C24: =SUMIF('ПО КОРИСНИЦИМА'!$F$4:$F$2858,'По основ. нам.'!A24,'ПО КОРИСНИЦИМА'!$H$4:$H$2858) -> 0 | D24: 0 | E24: =SUMIF('ПО КОРИСНИЦИМА'!$F$4:$F$2858,'По основ. нам.'!A24,'ПО КОРИСНИЦИМА'!$I$4:$I$2858) -> 0 | F24: 0 | G24: 0
A25: 435 | B25: Амортизација нематеријалне имовине | C25: =SUMIF('ПО КОРИСНИЦИМА'!$F$4:$F$2858,'По основ. нам.'!A25,'ПО КОРИСНИЦИМА'!$H$4:$H$2858) -> 0 | D25: 0 | E25: =SUMIF('ПО КОРИСНИЦИМА'!$F$4:$F$2858,'По основ. нам.'!A25,'ПО КОРИСНИЦИМА'!$I$4:$I$2858) -> 0 | F25: 0 | G25: 0
A26: 440 | B26: ОТПЛАТА КАМАТА | C26: =SUM(C27:C30) -> 4050000 | D26: 0.001518791957 | E26: =SUM(E27:E30) -> 0 | F26: 4050000 | G26: 0.1214392804
A27: 441 | B27: Отплата домаћих камата; | C27: 4000000 | F27: =C27 -> 4000000 | G27: 0.11994003
A28: 442 | B28: Отплата страних камата; | G28: 0
A29: 443 | B29: Отплата камата по гаранцијама | G29: 0
A30: 444 | B30: Пратећи трошкови задуживања | C30: 50000 | F30: =C30 -> 50000 | G30: 0.001499250375
A31: 450 | B31: СУБВЕНЦИЈЕ | C31: =SUM(C32:C36) -> 376803000 | D31: 0.1413050286 | E31: =SUM(E32:E36) -> 0 | F31: 376803000 | G31: 11.29844078
A32: 4511 | B32: Текуће субвенције јавним нефинансијским предузећима и организацијама | C32: 155003000 | F32: =C32 -> 155003000 | G32: 4.647766117
A33: 4512 | B33: Капиталне субвенције јавним нефинансијским предузећима и организацијама | C33: 201800000 | F33: =C33 -> 201800000 | G33: 6.050974513
A34: 452 | B34: Субвенције приватним финансијским институцијама; | G34: 0
A35: 453 | B35: Субвенције јавним финансијским институцијама; | G35: =F35/Ukupno_izdaci*100 -> 0
A36: 454 | B36: Субвенције приватним предузећима | C36: 20000000 | F36: =C36 -> 20000000 | G36: 0.5997001499
A37: 460 | B37: ДОНАЦИЈЕ И ТРАНСФЕРИ | C37: =C40+C41+C42+C43 -> 107660000 | D37: =IFERROR(C37/$C$84,"-") -> 0.04037361532 | E37: =SUM(E38:E43) -> 0 | F37: 107660000 | G37: 3.228185907
A38: 461 | B38: Донације страним владама | C38: =SUMIF('ПО КОРИСНИЦИМА'!$F$4:$F$2858,'По основ. нам.'!A38,'ПО КОРИСНИЦИМА'!$H$4:$H$2858) -> 0 | D38: 0 | E38: =SUMIF('ПО КОРИСНИЦИМА'!$F$4:$F$2858,'По основ. нам.'!A38,'ПО КОРИСНИЦИМА'!$I$4:$I$2858) -> 0 | F38: 0 | G38: 0
A39: 462 | B39: Донације и дотације међународним организацијама | C39: =SUMIF('ПО КОРИСНИЦИМА'!$F$4:$F$2858,'По основ. нам.'!A39,'ПО КОРИСНИЦИМА'!$H$4:$H$2858) -> 0 | D39: 0 | E39: =SUMIF('ПО КОРИСНИЦИМА'!$F$4:$F$2858,'По основ. нам.'!A39,'ПО КОРИСНИЦИМА'!$I$4:$I$2858) -> 0 | F39: 0 | G39: 0
A40: 4631 | B40: Текући трансфери осталим нивоима власти | C40: 73635000 | F40: =C40 -> 73635000 | G40: 2.207946027
A41: 4632 | B41: Капитални трансфери осталим нивоима власти | C41: 16925000 | F41: =C41 -> 16925000 | G41: 0.5074962519
A42: 464 | B42: Дотације организацијама обавезног социјалног осигурања | C42: 17100000 | F42: =C42 -> 17100000 | G42: 0.5127436282
A43: 465 | B43: Остале донације, дотације и трансфери | D43: 0 | E43: 0 | F43: 0 | G43: 0
A44: 470 | B44: СОЦИЈАЛНА ПОМОЋ | C44: =SUM(C45) -> 105900000 | D44: 0.03971359709 | E44: =SUM(E45) -> 1500000 | F44: 107400000 | G44: 3.220389805
A45: 472 | B45: Накнаде за социјалну заштиту из буџета | C45: 105900000 | E45: 1500000 | F45: =C45+E45 -> 107400000 | G45: 3.220389805
A46: 480 | B46: ОСТАЛИ РАСХОДИ | C46: =SUM(C47:C52) -> 126654000 | D46: 0.04749656209 | E46: =SUM(E47:E52) -> 0 | F46: =C46+E46 -> 126654000 | G46: 3.797721139
A47: 481 | B47: Дотације невладиним организацијама; | C47: 80180000 | F47: =C47 -> 80180000 | G47: 2.404197901
A48: 482 | B48: Порези, обавезне таксе, казне и пенали; | C48: 9224000 | F48: =C48 -> 9224000 | G48: 0.2765817091
A49: 483 | B49: Новчане казне и пенали по решењу судова; | C49: 5950000 | F49: =C49 -> 5950000 | G49: 0.1784107946
A50: 484 | B50: Накнада штете за повреде или штету насталу услед елементарних непогода или других природних узрока; | C50: 1550000 | F50: =C50 -> 1550000 | G50: 0.04647676162
A51: 485 | B51: Накнада штете за повреде или штету нанету од стране државних органа; | C51: 29750000 | F51: =C51 -> 29750000 | G51: 0.892053973
A52: 489 | B52: Расходи који се финансирају из средстава за реализацију националног инвестиционог плана | C52: =SUMIF('ПО КОРИСНИЦИМА'!$F$4:$F$2858,'По основ. нам.'!A52,'ПО КОРИСНИЦИМА'!$H$4:$H$2858) -> 0 | D52: 0 | E52: =SUMIF('ПО КОРИСНИЦИМА'!$F$4:$F$2858,'По основ. нам.'!A52,'ПО КОРИСНИЦИМА'!$I$4:$I$2858) -> 0 | F52: 0 | G52: 0
A53: 490 | B53: АДМИНИСТРАТИВНИ ТРАНСФЕРИ БУЏЕТА | C53: =SUM(C54:C59) -> 35000000 | D53: 0.01312536259 | E53: =SUM(E58:E59) -> 0 | F53: 35000000 | G53: 1.049475262
A54: 494 | B54: Административни трансфери из буџета - Текући расходи | C54: =SUMIF('ПО КОРИСНИЦИМА'!$F$4:$F$2858,'По основ. нам.'!A54,'ПО КОРИСНИЦИМА'!$H$4:$H$2858) -> 0 | D54: 0 | E54: =SUMIF('ПО КОРИСНИЦИМА'!$F$4:$F$2858,'По основ. нам.'!A54,'ПО КОРИСНИЦИМА'!$I$4:$I$2858) -> 0 | F54: 0 | G54: 0
A55: 495 | B55: Административни трансфери из буџета - Издаци за нефинансијску имовину | C55: =SUMIF('ПО КОРИСНИЦИМА'!$F$4:$F$2858,'По основ. нам.'!A55,'ПО КОРИСНИЦИМА'!$H$4:$H$2858) -> 0 | D55: 0 | E55: =SUMIF('ПО КОРИСНИЦИМА'!$F$4:$F$2858,'По основ. нам.'!A55,'ПО КОРИСНИЦИМА'!$I$4:$I$2858) -> 0 | F55: 0 | G55: 0
A56: 496 | B56: Административни трансфери из буџета - Издаци за отплату главнице и набавку финансијске имовине | C56: =SUMIF('ПО КОРИСНИЦИМА'!$F$4:$F$2858,'По основ. нам.'!A56,'ПО КОРИСНИЦИМА'!$H$4:$H$2858) -> 0 | D56: 0 | E56: =SUMIF('ПО КОРИСНИЦИМА'!$F$4:$F$2858,'По основ. нам.'!A56,'ПО КОРИСНИЦИМА'!$I$4:$I$2858) -> 0 | F56: 0 | G56: 0
A57: 499 | B57: Административни трансфери из буџета - Средства резерве | D57: 0 | E57: =SUMIF('ПО КОРИСНИЦИМА'!$F$4:$F$2858,'По основ. нам.'!A57,'ПО КОРИСНИЦИМА'!$I$4:$I$2858) -> 0 | F57: 0 | G57: 0
A58: 49911 | B58: Стална резерва | C58: 5000000 | F58: =C58 -> 5000000 | G58: 0.1499250375
A59: 49912 | B59: Текућа резерва | C59: 30000000 | F59: =C59 -> 30000000 | G59: 0.8995502249
A60: 500 | B60: КАПИТАЛНИ ИЗДАЦИ | C60: =C61+C67+C72+C76 -> 947130000 | D60: 0.3551835619 | E60: =SUM(E61,E67,E72,E76) -> 311557000 | F60: =SUM(C60,E60) -> 1258687000 | G60: 37.74173913
A61: 510 | B61: ОСНОВНА СРЕДСТВА | C61: =C62+C63+C64+C65+C66 -> 896630000 | D61: 0.3362455388 | E61: =SUM(E62:E66) -> 311557000 | F61: 1208187000 | G61: 36.22749625
A62: 511 | B62: Зграде и грађевински објекти; | C62: 789000000 | E62: 301000000 | F62: =C62+E62 -> 1090000000 | G62: 32.68365817
A63: 512 | B63: Машине и опрема; | C63: 55000000 | E63: 10557000 | F63: =C63+E63 -> 65557000 | G63: 1.965727136
A64: 513 | B64: Остале некретнине и опрема; | G64: 0
A65: 514 | B65: Култивисана имовина; | G65: 0
A66: 515 | B66: Нематеријална имовина | C66: 52630000 | F66: =C66 -> 52630000 | G66: 1.578110945
A67: 520 | B67: ЗАЛИХЕ | C67: =SUM(C68:C71) -> 500000 | D67: 0.0001875051798 | E67: =SUM(E68:E70) -> 0 | F67: 500000 | G67: =F67/Ukupno_izdaci*100 -> 0.01499250375
A68: 521 | B68: Робне резерве; | C68: =SUMIF('ПО КОРИСНИЦИМА'!$F$4:$F$2858,'По основ. нам.'!A68,'ПО КОРИСНИЦИМА'!$H$4:$H$2858) -> 0 | D68: 0 | E68: =SUMIF('ПО КОРИСНИЦИМА'!$F$4:$F$2858,'По основ. нам.'!A68,'ПО КОРИСНИЦИМА'!$I$4:$I$2858) -> 0 | F68: 0 | G68: 0
A69: 522 | B69: Залихе производње; | C69: =SUMIF('ПО КОРИСНИЦИМА'!$F$4:$F$2858,'По основ. нам.'!A69,'ПО КОРИСНИЦИМА'!$H$4:$H$2858) -> 0 | D69: =IFERROR(C69/$C$84,"-") -> 0 | E69: =SUMIF('ПО КОРИСНИЦИМА'!$F$4:$F$2858,'По основ. нам.'!A69,'ПО КОРИСНИЦИМА'!$I$4:$I$2858) -> 0 | F69: 0 | G69: 0
A70: 523 | B70: Залихе робе за даљу продају | C70: 500000 | F70: =C70 -> 500000 | G70: 0.01499250375
A71: 531 | B71: Драгоцености | C71: =SUMIF('ПО КОРИСНИЦИМА'!$F$4:$F$2858,'По основ. нам.'!A71,'ПО КОРИСНИЦИМА'!$H$4:$H$2858) -> 0 | D71: 0 | G71: 0
A72: 540 | B72: ПРИРОДНА ИМОВИНА | C72: =SUM(C73:C75) -> 50000000 | D72: 0.01875051798 | E72: =SUM(E73:E75) -> 0 | F72: 50000000 | G72: 1.499250375
A73: 541 | B73: Земљиште; | C73: =SUMIF('ПО КОРИСНИЦИМА'!$F$4:$F$2858,'По основ. нам.'!A73,'ПО КОРИСНИЦИМА'!$H$4:$H$2858) -> 50000000 | D73: 0.01875051798 | E73: =SUMIF('ПО КОРИСНИЦИМА'!$F$4:$F$2858,'По основ. нам.'!A73,'ПО КОРИСНИЦИМА'!$I$4:$I$2858) -> 0 | F73: 50000000 | G73: 1.499250375
A74: 542 | B74: Рудна богатства; | C74: =SUMIF('ПО КОРИСНИЦИМА'!$F$4:$F$2858,'По основ. нам.'!A74,'ПО КОРИСНИЦИМА'!$H$4:$H$2858) -> 0 | D74: 0 | E74: =SUMIF('ПО КОРИСНИЦИМА'!$F$4:$F$2858,'По основ. нам.'!A74,'ПО КОРИСНИЦИМА'!$I$4:$I$2858) -> 0 | F74: 0 | G74: 0
A75: 543 | B75: Шуме и воде | C75: =SUMIF('ПО КОРИСНИЦИМА'!$F$4:$F$2858,'По основ. нам.'!A75,'ПО КОРИСНИЦИМА'!$H$4:$H$2858) -> 0 | D75: =IFERROR(C75/$C$84,"-") -> 0 | E75: =SUMIF('ПО КОРИСНИЦИМА'!$F$4:$F$2858,'По основ. нам.'!A75,'ПО КОРИСНИЦИМА'!$I$4:$I$2858) -> 0 | F75: 0 | G75: 0
A76: 550 | B76: Неф. Имов. која се фин. из сред. за реализ. нип-а | C76: =SUM(C77) -> 0 | D76: 0 | E76: =SUM(E77) -> 0 | F76: =C76+E76 -> 0 | G76: 0
A77: 551 | B77: Неф. имовина која се фин. из сред. за реализ. нип-а | C77: =SUMIF('ПО КОРИСНИЦИМА'!$F$4:$F$2858,'По основ. нам.'!A77,'ПО КОРИСНИЦИМА'!$H$4:$H$2858) -> 0 | D77: 0 | E77: =SUMIF('ПО КОРИСНИЦИМА'!$F$4:$F$2858,'По основ. нам.'!A77,'ПО КОРИСНИЦИМА'!$I$4:$I$2858) -> 0 | F77: =C77+E77 -> 0 | G77: 0
A78: 610 | B78: ОТПЛАТА ГЛАВНИЦЕ | C78: =SUM(C79:C81) -> 1000000 | D78: 0.0003750103597 | E78: =SUM(E79:E81) -> 74000000 | F78: 75000000 | G78: 2.248875562
A79: 611 | B79: Отплата главнице домаћим кредиторима | C79: 1000000 | E79: 74000000 | F79: =C79+E79 -> 75000000 | G79: 2.248875562
A80: 612 | B80: Отплата главнице страним банкама | C80: =SUMIF('ПО КОРИСНИЦИМА'!$F$4:$F$2858,'По основ. нам.'!A80,'ПО КОРИСНИЦИМА'!$H$4:$H$2858) -> 0 | D80: 0 | E80: =SUMIF('ПО КОРИСНИЦИМА'!$F$4:$F$2858,'По основ. нам.'!A80,'ПО КОРИСНИЦИМА'!$I$4:$I$2858) -> 0 | G80: 0
A81: 613 | B81: Отплата дуга по гаранцијама | C81: =SUMIF('ПО КОРИСНИЦИМА'!$F$4:$F$2858,'По основ. нам.'!A81,'ПО КОРИСНИЦИМА'!$H$4:$H$2858) -> 0 | D81: 0 | E81: =SUMIF('ПО КОРИСНИЦИМА'!$F$4:$F$2858,'По основ. нам.'!A81,'ПО КОРИСНИЦИМА'!$I$4:$I$2858) -> 0 | G81: 0
A82: 620 | B82: Набавка финансијске имовине | C82: =SUMIF('ПО КОРИСНИЦИМА'!$F$4:$F$2858,'По основ. нам.'!A82,'ПО КОРИСНИЦИМА'!$H$4:$H$2858) -> 0 | D82: 0 | E82: =SUM(E83) -> 0 | F82: 0 | G82: 0
A83: 621 | B83: Набавка домаће фин. Имовине | C83: =SUMIF('ПО КОРИСНИЦИМА'!$F$4:$F$2858,'По основ. нам.'!A83,'ПО КОРИСНИЦИМА'!$H$4:$H$2858) -> 0 | D83: 0 | E83: =SUMIF('ПО КОРИСНИЦИМА'!$F$4:$F$2858,'По основ. нам.'!A83,'ПО КОРИСНИЦИМА'!$I$4:$I$2858) -> 0 | F83: 0 | G83: 0
B84: УКУПНИ ЈАВНИ РАСХОДИ | C84: =C6+C13+C26+C31+C37+C44+C46+C53+C61+C67+C72+C78 -> 2666593000 | D84: 1 | E84: =SUM(E6,E13,E20,E26,E31,E37,E46,E44,E53,E61,E67,E72,E76,E78,E82) -> 668407000 | F84: =F5+F60+F78 -> 3335000000 | G84: 100

Sheet ПО КОРИСНИЦИМА
A1: Раздео | B1: Глава | C1: Програм-ска Класиф. | D1: Функција | E1: Позиција | F1: Економ. Класиф. | G1: Организациона класификација | H1: Средства из буџета-извор 01 | I1: Средства из осталих извора | J1: Укупна јавна средства
A2: 1 | B2: 2 | C2: 3 | D2: 4 | E2: 5 | F2: 6 | G2: 7 | H2: 8 | I2: 9 | J2: 10
A3: 1 | G3: СКУПШТИНА ОПШТИНЕ
C4: 2101 | G4: ПРОГРАМ 16: ПОЛИТИЧКИ СИСТЕМ ЛОКАЛНЕ САМОУПРАВЕ
C5: 2101-0001 | G5: ПА: Функционисање скупштине
D6: 110 | G6: Извршни и законодавни органи, финансијски и фискални послови
E7: 1 | F7: 411 | G7: Плате, додаци и накнаде запослених (зараде) | H7: 4097000 | J7: =H7 -> 4097000
E8: 2 | F8: 412 | G8: Социјални доприноси на терет послодавца | H8: 662000 | J8: =H8 -> 662000
E9: 3 | F9: 413 | G9: Накнаде у натури | H9: 70000 | J9: 70000
E10: 4 | F10: 414 | G10: Социјална давања запосленима | H10: 500000 | J10: 500000
E11: 5 | F11: 415 | G11: Накнаде трошкова за запослене | H11: 80000 | J11: 80000
E12: 6 | F12: 421 | G12: Стални трошкови | H12: 11000 | J12: 11000
E13: 7 | F13: 422 | G13: Трошкови путовања | H13: 300000 | J13: 300000
E14: 8 | F14: 423 | G14: Услуге по уговору - накнаде за одборнике, репрезентација, дан општине, угоститељске услуге | H14: 21000000 | J14: 21000000
E15: 9 | F15: 425 | G15: Текуће поправке и одржавање | H15: 250000 | J15: 250000
E16: 10 | F16: 426 | G16: Материјал | H16: 900000 | J16: 900000
F17: 431 | G17: Амортизација некретнина и опреме | J17: 0
F18: 432 | G18: Амортизација култивисане имовине | J18: 0
F19: 433 | G19: Употреба драгоцености | J19: 0
F20: 434 | G20: Употреба природне имовине | J20: 0
F21: 435 | G21: Амортизација нематеријалне имовине | J21: 0
F22: 441 | G22: Отплата домаћих камата | J22: 0
F23: 442 | G23: Отплата страних камата | J23: 0
F24: 443 | G24: Отплата камата по гаранцијама | J24: 0
F25: 444 | G25: Пратећи трошкови задуживања | J25: 0
F26: 4511 | G26: Текуће субвенције јавним нефинансијским предузећима и организацијама | J26: 0
F27: 4512 | G27: Капиталне субвенције јавним нефинансијским предузећима и организацијама | J27: 0
F28: 452 | G28: Субвенције приватним финансијским институцијама | J28: 0
F29: 453 | G29: Субвенције јавним финансијским институцијама | J29: 0
F30: 454 | G30: Субвенције приватним предузећима | J30: 0
F31: 461 | G31: Донације страним владама | J31: 0
F32: 462 | G32: Донације и дотације међународним организацијама | J32: 0
F33: 4631 | G33: Текући трансфери осталим нивоима власти | J33: 0
F34: 4632 | G34: Капитални трансфери осталим нивоима власти | J34: 0
F35: 464 | G35: Дотације организацијама обавезног социјалног осигурања | J35: 0
F36: 465 | G36: Остале донације, дотације и трансфери | J36: 0
E37: 11 | F37: 481 | G37: Дотације невладиним организацијама-средства за финансирање редовног рада политичких странки | H37: 970000 | J37: 970000
E38: 12 | F38: 482 | G38: Порези, обавезне таксе, казне и пенали | H38: 10000 | J38: 10000
F39: 482 | G39: Порези, обавезне таксе, казне и пенали | J39: =SUM(H39:I39) -> 0
F40: 483 | G40: Новчане казне и пенали по решењу судова | J40: 0
F41: 484 | G41: Накнада штете за повреде или штету насталу услед елементарних непогода или других природних узрока | J41: 0
F42: 485 | G42: Накнада штете за повреде или штету нанету од стране државних органа | J42: 0
F43: 489 | G43: Расходи који се финансирају из средстава за реализацију националног инвестиционог плана | J43: 0
F44: 494 | G44: Административни трансфери из буџета - Текући расходи | J44: 0
F45: 495 | G45: Административни трансфери из буџета - Издаци за нефинансијску имовину | J45: 0
F46: 496 | G46: Административни трансфери из буџета - Издаци за отплату главнице и набавку финансијске имовине | J46: 0
F47: 499 | G47: Административни трансфери из буџета - Средства резерве | J47: 0
F48: 511 | G48: Зграде и грађевински објекти | J48: 0
F49: 512 | G49: Машине и опрема | J49: 0
F50: 513 | G50: Остале некретнине и опрема | J50: 0
F51: 514 | G51: Култивисана имовина | J51: 0
F52: 515 | G52: Нематеријална имовина | J52: 0
F53: 521 | G53: Робне резерве | J53: 0
F54: 522 | G54: Залихе производње | J54: 0
F55: 523 | G55: Залихе робе за даљу продају | J55: 0
F56: 531 | G56: Драгоцености | J56: 0
F57: 541 | G57: Земљиште | J57: 0
F58: 542 | G58: Рудна богатства | J58: 0
F59: 543 | G59: Шуме и воде | J59: 0
F60: 551 | G60: Нефинансијска имовина која се финансира из средстава за реализацију националног инвестиционог плана | J60: 0
F61: 611 | G61: Отплата главнице домаћим кредиторима | J61: 0
F62: 620 | G62: Набавка финансијске имовине | J62: 0
G63: Извори финансирања за ПА: 2101-0001
G64: 01 - Приходи буџета | H64: =H7+H8+H9+H10+H11+H12+H13+H14+H15+H16+H37+H38 -> 28850000 | J64: =J7+J8+J9+J10+J11+J12+J13+J14+J15+J16+J37+J38 -> 28850000
G65: Укупно за ПА: 2101-0001 | H65: =H64 -> 28850000 | J65: =J64 -> 28850000
G66: Извор финансирања за функцију: 110
G67: 01 - Приходи буџета | H67: =H65 -> 28850000 | J67: =H67 -> 28850000
G68: Укупно за функцију: 110 | H68: =H65 -> 28850000 | J68: =J65 -> 28850000
G69: Извори финансирања за раздео 1. - СКУПШТИНА ОПШТИНЕ:
G70: 01 - Приходи из буџета | H70: =H64 -> 28850000 | J70: =SUM(H70:I70) -> 28850000
F71: 02 | G71: Трансфери између корисника на истом нивоу | J71: =SUM(H71:I71) -> 0
F72: 03 | G72: Социјални доприноси | J72: 0
F73: 04 | G73: Сопствени приходи буџетских корисника | J73: 0
F74: 05 | G74: Донације од иностраних земаља | J74: 0
F75: 06 | G75: Донације од међународних организација | J75: 0
F76: 07 | G76: Трансфери од других нивоа власти | J76: 0
F77: 08 | G77: Добровољни трансфери од физичких и правних лица | J77: 0
F78: 09 | G78: Примања од продаје нефинансијске имовине | J78: 0
F79: 10 | G79: Примања од домаћих задуживања | J79: 0
F80: 11 | G80: Примања од иностраних задуживања | J80: 0
F81: 12 | G81: Примања од отплате датих кредита и продаје финансијске имовине | J81: 0
F82: 13 | G82: Нераспоређени вишак прихода из ранијих година | J82: 0
F83: 14 | G83: Неутрошена средства од приватизације из претходних година | J83: 0
F84: 15 | G84: Неутрошена средства донација из претходних година | J84: 0
F85: 16 | G85: Родитељски динар за ваннаставне активности | J85: 0
G86: Укупно за раздео 1. - СКУПШТИНА ОПШТИНЕ | H86: =SUM(H70:H85) -> 28850000 | J86: =SUM(J70:J85) -> 28850000
A88: 2 | G88: ПРЕДСЕДНИК ОПШТИНЕ
C89: 2101 | G89: ПРОГРАМ 16 : ПОЛИТИЧКИ СИСТЕМ ЛОКАЛНЕ САМОУПРАВЕ
C90: 2101-0002 | G90: ПА:Функционисање извршних органа
D91: 111 | G91: Извршни и законодавни органи
E92: 13 | F92: 411 | G92: Плате, додаци и накнаде запослених (зараде) | H92: 3707000 | J92: =H92+I92 -> 3707000
E93: 14 | F93: 412 | G93: Социјални доприноси на терет послодавца | H93: 600000 | J93: =H93+I93 -> 600000
F94: 413 | G94: Накнаде у натури | J94: 0
E95: 15 | F95: 413 | G95: Накнада у натури | H95: 70000 | J95: 70000
E96: 16 | F96: 414 | G96: Социјална давања запосленима | H96: 250000 | J96: 250000
F97: 415 | G97: Накнаде трошкова за запослене | J97: 0
F98: 416 | G98: Награде запосленима и остали посебни расходи | J98: 0
F99: 417 | G99: Посланички додатак | J99: 0
F100: 418 | G100: Судијски додатак. | J100: 0
E101: 17 | F101: 415 | G101: Накнада трошкова за запослене - превоз | H101: 5000 | J101: 5000
E102: 18 | F102: 421 | G102: Стални трошкови | H102: 10000 | J102: 10000
E103: 19 | F103: 422 | G103: Трошкови путовања | H103: 350000 | J103: 350000
E104: 20 | F104: 423 | G104: Услуге по уговору | H104: 7000000 | J104: 7000000
F105: 424 | G105: Специјализоване услуге | J105: 0
E106: 21 | F106: 425 | G106: Текуће поправке и одржавање | H106: 300000 | J106: 300000
E107: 22 | F107: 426 | G107: Материјал | H107: 1500000 | J107: 1500000
F108: 431 | G108: Амортизација некретнина и опреме | J108: 0
F109: 432 | G109: Амортизација култивисане имовине | J109: 0
F110: 433 | G110: Употреба драгоцености | J110: 0
F111: 434 | G111: Употреба природне имовине | J111: 0
F112: 435 | G112: Амортизација нематеријалне имовине | J112: 0
F113: 441 | G113: Отплата домаћих камата | J113: 0
F114: 442 | G114: Отплата страних камата | J114: 0
F115: 443 | G115: Отплата камата по гаранцијама | J115: 0
F116: 444 | G116: Пратећи трошкови задуживања | J116: 0
F117: 4511 | G117: Текуће субвенције јавним нефинансијским предузећима и организацијама | J117: 0
F118: 4512 | G118: Капиталне субвенције јавним нефинансијским предузећима и организацијама | J118: 0
F119: 452 | G119: Субвенције приватним финансијским институцијама | J119: 0
F120: 453 | G120: Субвенције јавним финансијским институцијама | J120: 0
F121: 454 | G121: Субвенције приватним предузећима | J121: 0
F122: 461 | G122: Донације страним владама | J122: 0
F123: 462 | G123: Донације и дотације међународним организацијама | J123: 0
F124: 4631 | G124: Текући трансфери осталим нивоима власти | J124: 0
F125: 4632 | G125: Капитални трансфери осталим нивоима власти | J125: 0
F126: 464 | G126: Дотације организацијама обавезног социјалног осигурања | J126: 0
F127: 465 | G127: Остале донације, дотације и трансфери | J127: 0
F128: 472 | G128: Накнаде за социјалну заштиту из буџета | J128: 0
F129: 481 | G129: Дотације невладиним организацијама | J129: 0
F130: 482 | G130: Порези, обавезне таксе, казне и пенали | J130: 0
F131: 483 | G131: Новчане казне и пенали по решењу судова | J131: 0
F132: 484 | G132: Накнада штете за повреде или штету насталу услед елементарних непогода или других природних узрока | J132: 0
F133: 485 | G133: Накнада штете за повреде или штету нанету од стране државних органа | J133: 0
F134: 489 | G134: Расходи који се финансирају из средстава за реализацију националног инвестиционог плана | J134: 0
F135: 494 | G135: Административни трансфери из буџета - Текући расходи | J135: 0
F136: 495 | G136: Административни трансфери из буџета - Издаци за нефинансијску имовину | J136: 0
F137: 496 | G137: Административни трансфери из буџета - Издаци за отплату главнице и набавку финансијске имовине | J137: 0
F138: 499 | G138: Административни трансфери из буџета - Средства резерве | J138: 0
F139: 511 | G139: Зграде и грађевински објекти | J139: 0
F140: 512 | G140: Машине и опрема | J140: 0
F141: 513 | G141: Остале некретнине и опрема | J141: 0
F142: 514 | G142: Култивисана имовина | J142: 0
F143: 515 | G143: Нематеријална имовина | J143: 0
F144: 521 | G144: Робне резерве | J144: 0
F145: 522 | G145: Залихе производње | J145: 0
F146: 523 | G146: Залихе робе за даљу продају | J146: 0
F147: 531 | G147: Драгоцености | J147: 0
F148: 541 | G148: Земљиште | J148: 0
F149: 542 | G149: Рудна богатства | J149: 0
F150: 543 | G150: Шуме и воде | J150: 0
F151: 551 | G151: Нефинансијска имовина која се финансира из средстава за реализацију националног инвестиционог плана | J151: 0
F152: 611 | G152: Отплата главнице домаћим кредиторима | J152: 0
E153: 23 | F153: 482 | G153: Порези, обавезне таксе, казне и пенали | H153: 100000 | J153: 100000
G154: Извор финансирања за ПА: 2101-0002
G155: 01 - Приходи из буџета | H155: =H92+H93+H95+H96+H101+H102+H103+H104+H106+H107+H153 -> 13892000 | J155: =H155 -> 13892000
G156: Трансфери између корисника на истом нивоу | J156: =SUM(H156:I156) -> 0
G157: Социјални доприноси | J157: 0
G158: Сопствени приходи буџетских корисника | J158: 0
G159: Донације од иностраних земаља | J159: 0
G160: Донације од међународних организација | J160: 0
G161: Трансфери од других нивоа власти | J161: 0
G162: Добровољни трансфери од физичких и правних лица | J162: 0
G163: Примања од продаје нефинансијске имовине | J163: 0
G164: Примања од домаћих задуживања | J164: 0
G165: Примања од иностраних задуживања | J165: 0
G166: Примања од отплате датих кредита и продаје финансијске имовине | J166: 0
G167: Нераспоређени вишак прихода из ранијих година | J167: 0
G168: Неутрошена средства од приватизације из претходних година | J168: 0
G169: Неутрошена средства донација из претходних година | J169: 0
G170: Родитељски динар за ваннаставне активности | J170: 0
G171: Укупно за ПА: 2101-0002 | H171: =H155 -> 13892000 | J171: =J155 -> 13892000
G172: Извор финансирања за раздео 2. - ПРЕДСЕДНИК ОПШТИНЕ
G173: 01 -Приходи из буџета | H173: =H189 -> 13892000 | J173: =SUM(H173:I173) -> 13892000
F174: 02 | G174: Трансфери између корисника на истом нивоу | J174: =SUM(H174:I174) -> 0
F175: 03 | G175: Социјални доприноси | J175: 0
F176: 04 | G176: Сопствени приходи буџетских корисника | J176: 0
F177: 05 | G177: Донације од иностраних земаља | J177: 0
F178: 06 | G178: Донације од међународних организација | J178: 0
F179: 07 | G179: Трансфери од других нивоа власти | J179: 0
F180: 08 | G180: Добровољни трансфери од физичких и правних лица | J180: 0
F181: 09 | G181: Примања од продаје нефинансијске имовине | J181: 0
F182: 10 | G182: Примања од домаћих задуживања | J182: 0
F183: 11 | G183: Примања од иностраних задуживања | J183: 0
F184: 12 | G184: Примања од отплате датих кредита и продаје финансијске имовине | J184: 0
F185: 13 | G185: Нераспоређени вишак прихода из ранијих година | J185: 0
F186: 14 | G186: Неутрошена средства од приватизације из претходних година | J186: 0
F187: 15 | G187: Неутрошена средства донација из претходних година | J187: 0
F188: 16 | G188: Родитељски динар за ваннаставне активности | J188: 0
G189: Укупно за раздео 2. - ПРЕДСЕДНИК ОПШТИНЕ | H189: =H171 -> 13892000 | J189: =J171 -> 13892000
A191: 3 | G191: ОПШТИНСКО ВЕЋЕ
C192: 2101 | G192: ПРОГРАМ 16: ПОЛИТИЧКИ СИСТЕМ ЛОКАЛНЕ САМОУПРАВЕ
C193: 2101-0002 | G193: ПА: Функционисање извршних органа
D194: 111 | G194: Извршни и законодавни органи
E195: 24 | F195: 411 | G195: Плате, додаци и накнаде запослених (зараде) | H195: 1200000 | J195: =H195 -> 1200000
E196: 25 | F196: 412 | G196: Социјални доприноси на терет послодавца | H196: 194000 | J196: =H196 -> 194000
E197: 26 | F197: 414 | G197: Социјална давања запосленима | H197: 120000 | J197: =H197 -> 120000
E198: 27 | F198: 415 | G198: Накнада трошкова за запослене - превоз | H198: 86000 | J198: 86000
E199: 28 | F199: 423 | G199: Услуге по уговору - накнада члановима општинског већа, репрезентација | H199: 3500000 | J199: =H199 -> 3500000
E200: 29 | F200: 426 | G200: Материјал | H200: 300000 | J200: =H200+I200 -> 300000
G201: Извори финансирања за ПА: 2101-0002
G202: 01 - Приходи буџета | H202: =H195+H196+H197+H198+H199+H200 -> 5400000 | J202: =J195+J196+J197+J198+J199+J200 -> 5400000
... 2179 more rows
